bitfinex/quotes_BTCUSD_20251201
["timestamp","ask_amount","ask_price","bid_price","bid_amount"]
[1764555022212,0.02857,87299.0,87297.0,0.22910294]
[1764555022617,0.03621,87298.0,87297.0,0.22910294]
[1764555023379,0.02857,87299.0,87297.0,0.22910294]
[1764555023583,0.1,87300.0,87299.0,0.22909769]
[1764555023982,0.1,87300.0,87299.0,0.24048971]
[1764555024727,0.1,87300.0,87299.0,0.55209769]
[1764555025115,0.101,87300.0,87299.0,0.55409769]
[1764555027005,0.101,87300.0,87299.0,0.23109769]
[1764555027222,0.13721,87300.0,87299.0,0.23109769]
[1764555027622,0.13721,87300.0,87299.0,0.00275239]
[1764555027820,0.101,87300.0,87299.0,0.00275239]
[1764555030647,0.101,87300.0,87299.0,0.32575239]
[1764555031750,0.101,87300.0,87299.0,0.33303239]
[1764555032583,0.101,87300.0,87299.0,0.39555538]
[1764555032766,0.101,87300.0,87299.0,0.4069474]
[1764555033275,0.101,87300.0,87299.0,0.39555538]
[1764555033475,0.101,87300.0,87299.0,0.4069474]
[1764555033656,0.1,87300.0,87299.0,0.4049474]
[1764555033924,0.101,87300.0,87299.0,0.4089474]
[1764555034490,0.101,87300.0,87299.0,0.8089474]
[1764555035828,0.101,87300.0,87299.0,0.79755538]
[1764555036148,0.101,87300.0,87299.0,0.8089474]
[1764555036779,0.1,87300.0,87299.0,0.8049474]
[1764555036980,0.104,87300.0,87299.0,0.8059474]
[1764555037755,0.104,87300.0,87299.0,0.79455538]
[1764555037960,0.205,87300.0,87299.0,0.8059474]
[1764555039264,0.05132,87348.0,87340.0,0.00999999]
[1764555039457,0.02627,87343.0,87342.0,0.01144924]
[1764555039718,0.00011844,87349.0,87348.0,0.22896918]
[1764555040271,0.03525844,87349.0,87348.0,0.22896918]
[1764555040815,0.08657844,87349.0,87348.0,0.22896918]
[1764555041173,0.04025844,87349.0,87348.0,0.22996918]
[1764555042101,0.04025844,87349.0,87348.0,0.001]
[1764555042427,0.04025844,87349.0,87348.0,0.22996918]
[1764555043278,0.09157844,87349.0,87348.0,0.001]
[1764555043483,0.32054499,87349.0,87348.0,0.001]
[1764555044665,0.33194499,87349.0,87348.0,0.001]
[1764555045192,0.33194499,87349.0,87310.0,0.53193791]
[1764555045193,0.24050106,87318.0,87313.0,0.01145304]
[1764555045407,0.06141,87316.0,87313.0,0.01145304]
[1764555045610,0.06141,87316.0,87314.0,0.22905704]
[1764555046139,0.06141,87316.0,87313.0,0.01145304]
[1764555046338,0.06141,87316.0,87314.0,0.22905803]
[1764555046913,0.06141,87316.0,87315.0,0.00125075]
[1764555047641,0.06147777,87316.0,87315.0,0.00125075]
[1764555048055,0.06147777,87316.0,87315.0,0.02239595]
[1764555048056,0.02633777,87316.0,87315.0,0.02239595]
[1764555048440,0.02633777,87316.0,87315.0,0.00125075]
[1764555049118,0.06437777,87316.0,87315.0,0.00125075]
[1764555049493,0.06437777,87316.0,87315.0,0.23030646]
[1764555050512,0.06437777,87316.0,87315.0,0.00125075]
[1764555050948,0.12259777,87316.0,87315.0,0.00125075]
[1764555052472,0.06437777,87316.0,87315.0,0.00125075]
[1764555053924,0.02633777,87316.0,87315.0,0.00125075]
[1764555054302,0.06437777,87316.0,87315.0,0.00125075]
[1764555056153,0.06937777,87316.0,87315.0,0.00125075]
[1764555058287,0.00506777,87316.0,87315.0,0.00125075]
[1764555058497,0.00506777,87316.0,87315.0,0.04001095]
[1764555059513,0.00506777,87316.0,87315.0,0.10253394]
[1764555059668,0.00506777,87316.0,87315.0,0.08244576]
[1764555059867,0.00506777,87316.0,87315.0,0.42667922]
[1764555060095,0.00506777,87316.0,87315.0,0.80544576]
[1764555060864,0.00506777,87316.0,87315.0,0.79405374]
[1764555061062,0.00506777,87316.0,87315.0,0.80544576]
[1764555065324,0.00506777,87316.0,87315.0,0.80444576]
[1764555065528,0.00606777,87316.0,87315.0,0.81244576]
[1764555066142,0.00606777,87316.0,87315.0,0.80105374]
[1764555066367,0.00606777,87316.0,87315.0,0.41244576]
[1764555066788,0.00606777,87316.0,87315.0,0.81244576]
[1764555067850,0.00606777,87316.0,87315.0,0.80105374]
[1764555068891,0.00606777,87316.0,87315.0,0.81244576]
[1764555069089,0.00606777,87316.0,87315.0,0.8417087]
[1764555069305,0.00606777,87316.0,87315.0,0.81244576]
[1764555071094,0.00606777,87316.0,87315.0,0.80105374]
[1764555071262,0.00606777,87316.0,87315.0,0.81244576]
[1764555075641,0.00606777,87316.0,87315.0,0.81218576]
[1764555077495,0.00606777,87316.0,87315.0,0.80490576]
[1764555077659,0.00606777,87316.0,87315.0,0.81218576]
[1764555078260,0.00606777,87316.0,87315.0,0.92574576]
[1764555078462,0.00086586,87316.0,87315.0,3.8208087]
[1764555078687,0.00086586,87316.0,87315.0,2.98207776]
[1764555078883,0.00086586,87316.0,87315.0,2.74442376]
[1764555079116,0.00086586,87316.0,87315.0,2.94906276]
[1764555079322,0.00086586,87316.0,87315.0,2.94907276]
[1764555079532,0.01,87319.0,87318.0,0.62596285]
[1764555079820,0.01,87319.0,87318.0,1.10459585]
[1764555080031,0.01,87319.0,87318.0,1.08303085]
[1764555080240,0.01,87319.0,87318.0,1.48303085]
[1764555080445,0.01,87319.0,87318.0,1.53935885]
[1764555080851,0.01,87319.0,87318.0,1.54006785]
[1764555081059,0.01,87319.0,87318.0,1.02596285]
[1764555081262,0.015,87319.0,87318.0,1.53806785]
[1764555081494,0.015,87319.0,87318.0,1.02596285]
[1764555081703,0.015,87319.0,87318.0,1.53806785]
[1764555081991,0.015,87319.0,87318.0,1.03684936]
[1764555082190,0.015,87319.0,87318.0,1.05552138]
[1764555082960,0.015,87319.0,87318.0,1.11804437]
[1764555087808,0.015,87319.0,87318.0,4.14143637]
[1764555088091,0.02946,87363.0,87355.0,0.01144754]
[1764555088310,0.10039534,87358.0,87356.0,0.09734812]
[1764555088644,0.10039534,87358.0,87357.0,0.22894559]
[1764555090573,0.10339534,87358.0,87357.0,0.22894559]
[1764555090773,0.10039534,87358.0,87357.0,0.6258606]
[1764555090952,0.08915534,87358.0,87357.0,0.6258606]
[1764555091331,0.08615534,87358.0,87357.0,1.0258606]
[1764555092213,0.08615534,87358.0,87357.0,1.0308606]
[1764555093627,0.08615534,87358.0,87357.0,1.0318606]
[1764555094199,0.08615534,87358.0,87357.0,2.6673926]
[1764555094394,0.08615534,87358.0,87357.0,2.6313926]
[1764555094544,0.08615534,87358.0,87357.0,3.3231306]
[1764555094751,0.08615534,87358.0,87357.0,1.7540576]
[1764555094952,0.08615534,87358.0,87357.0,1.0318606]
[1764555095160,0.08615534,87358.0,87357.0,1.2306596]
[1764555095352,0.08615534,87358.0,87357.0,1.4564696]
[1764555095567,0.08615534,87358.0,87357.0,1.84481258]
[1764555095850,0.08615534,87358.0,87357.0,1.8562046]
[1764555096597,0.08615534,87358.0,87357.0,1.0318606]
[1764555096808,0.08615534,87358.0,87357.0,1.8562046]
[1764555097014,0.08615534,87358.0,87357.0,1.8684746]
[1764555097260,0.08615534,87358.0,87357.0,1.8655266]
[1764555097466,0.08615534,87358.0,87357.0,1.8479436]
[1764555097638,0.08615534,87358.0,87357.0,3.3347556]
[1764555097780,0.08615534,87358.0,87357.0,3.2542976]
[1764555097984,0.08615534,87358.0,87357.0,1.9214846]
[1764555098333,0.08615534,87358.0,87357.0,2.0836256]
[1764555098536,0.08615534,87358.0,87357.0,1.8685526]
[1764555098695,0.08615534,87358.0,87357.0,2.0644546]
[1764555098896,0.08615534,87358.0,87357.0,1.9786356]
[1764555099103,0.08615534,87358.0,87357.0,2.1585146]
[1764555099416,0.08615534,87358.0,87357.0,2.4133546]
[1764555099638,0.08615534,87358.0,87357.0,2.2910446]
[1764555099984,0.00207857,87374.0,87373.0,0.62581867]
[1764555100254,0.09609863,87377.0,87376.0,0.62581081]
[1764555100458,0.09621716,87377.0,87376.0,0.62581081]
[1764555100654,0.09621716,87377.0,87376.0,1.02581081]
[1764555101159,0.09621716,87377.0,87376.0,1.01441879]
[1764555101389,0.09621716,87377.0,87376.0,1.11316676]
[1764555101805,0.09621716,87377.0,87376.0,1.11616676]
[1764555101953,0.09621716,87377.0,87376.0,1.13484304]
[1764555102360,0.09621716,87377.0,87376.0,1.13584304]
[1764555104494,0.02332716,87394.0,87393.0,0.22885128]
[1764555104697,0.02691,87397.0,87395.0,0.22884524]
[1764555104899,0.02691,87397.0,87396.0,0.09734812]
[1764555105468,0.06036,87397.0,87396.0,0.09734812]
[1764555106503,0.06436,87397.0,87396.0,0.09734812]
[1764555106932,0.02691,87408.0,87404.0,0.228822]
[1764555107147,0.02702844,87406.0,87404.0,0.24021828]
[1764555107688,0.03907,87405.0,87404.0,0.24021828]
[1764555108908,0.0935,87405.0,87404.0,0.01139628]
[1764555109547,0.03907,87405.0,87404.0,0.01139628]
[1764555109756,0.00011844,87406.0,87405.0,0.24021188]
[1764555111016,0.00011844,87406.0,87405.0,0.22881986]
[1764555111614,0.00211844,87406.0,87405.0,0.22881986]
[1764555114659,0.00211844,87406.0,87404.0,0.01139628]
[1764555114875,0.00211844,87406.0,87404.0,0.24021616]
[1764555115642,0.00211844,87406.0,87405.0,0.01139202]
[1764555115908,0.00011844,87406.0,87405.0,0.01139202]
[1764555116313,0.00211844,87406.0,87405.0,0.01139202]
[1764555116636,0.00011844,87406.0,87405.0,0.01139202]
[1764555116773,0.00211844,87406.0,87405.0,0.01139202]
[1764555118249,0.10211844,87406.0,87405.0,0.01139202]
[1764555119223,0.20211844,87406.0,87405.0,0.01139202]
[1764555120436,0.30211844,87406.0,87405.0,0.01139202]
[1764555120786,0.30211844,87406.0,87405.0,0.38552299]
[1764555120992,0.30211844,87406.0,87405.0,0.48429349]
[1764555121220,0.30211844,87406.0,87405.0,0.51864466]
[1764555121450,0.30211844,87406.0,87405.0,0.88429349]
[1764555121698,0.30211844,87406.0,87405.0,0.95291779]
[1764555121847,0.30211844,87406.0,87405.0,0.91864344]
[1764555122388,0.30011844,87406.0,87405.0,0.91864344]
[1764555122745,0.30111844,87406.0,87405.0,0.91864344]
[1764555122945,0.30011844,87406.0,87405.0,0.91864344]
[1764555123355,0.30611844,87406.0,87405.0,0.91864344]
[1764555124523,0.30711844,87406.0,87405.0,0.88429349]
[1764555131463,0.0002,87410.0,87409.0,0.6257244]
[1764555132130,0.0002,87410.0,87409.0,2.69057499]
[1764555132336,0.0002,87420.0,87419.0,0.6143062]
[1764555132515,1e-08,87420.0,87419.0,0.74168262]
[1764555132814,1e-08,87420.0,87419.0,1.20978362]
[1764555133243,1e-08,87420.0,87419.0,1.21436263]
[1764555133680,1e-08,87420.0,87419.0,1.21736263]
[1764555134063,1e-08,87420.0,87419.0,1.21836263]
[1764555135441,0.0002,87440.0,87419.0,1.21836263]
[1764555135652,0.0002,87460.0,87459.0,0.22867858]
[1764555135850,0.02746,87498.0,87468.0,0.61417804]
[1764555136189,0.00957464,87469.0,87468.0,0.63696634]
[1764555136382,0.00957464,87469.0,87468.0,0.72345831]
[1764555136731,0.01095042,87469.0,87468.0,0.72345831]
[1764555137168,0.01095042,87469.0,87468.0,0.71206629]
[1764555137373,0.01095042,87469.0,87468.0,0.71606629]
[1764555137580,0.01095042,87469.0,87468.0,0.73569831]
[1764555138005,0.01095042,87469.0,87468.0,0.64920634]
[1764555138489,0.01095042,87469.0,87468.0,0.64520634]
[1764555138811,0.01095042,87469.0,87468.0,0.74555446]
[1764555138967,0.01095042,87469.0,87468.0,0.74155446]
[1764555139170,0.01095042,87469.0,87468.0,0.74255446]
[1764555139371,0.01070042,87469.0,87468.0,1.13316244]
[1764555139711,0.01070042,87469.0,87468.0,1.14455446]
[1764555143739,0.01833342,87495.0,87469.0,0.949223]
[1764555143939,0.0002,87510.0,87499.0,0.55157404]
[1764555144140,0.0002,87510.0,87499.0,0.64412533]
[1764555144141,0.01211715,87500.0,87499.0,0.64412533]
[1764555144455,0.01211715,87500.0,87499.0,1.04412533]
[1764555145191,0.0002,87510.0,87509.0,0.62546293]
[1764555145350,0.0002,87510.0,87509.0,0.63685921]
[1764555145530,0.0002,87510.0,87509.0,0.64409921]
[1764555146587,0.0002,87510.0,87509.0,0.64909921]
[1764555147471,0.0002,87520.0,87509.0,0.64909921]
[1764555147625,0.0002,87530.0,87521.0,0.61403957]
[1764555147961,0.0002,87530.0,87529.0,0.3024107]
[1764555148170,0.0003183,87530.0,87529.0,0.3024107]
[1764555149131,0.0003183,87530.0,87529.0,0.38666488]
[1764555149325,0.0013183,87530.0,87529.0,0.807013]
[1764555149751,0.00322383,87530.0,87529.0,0.807013]
[1764555150126,0.00322383,87530.0,87529.0,1.19562098]
[1764555150327,0.00322383,87530.0,87529.0,1.207013]
[1764555150536,0.00322383,87530.0,87529.0,1.214253]
[1764555151141,0.00322383,87530.0,87529.0,1.19562098]
[1764555151350,0.00322383,87530.0,87529.0,1.214253]
[1764555153476,0.00322383,87530.0,87529.0,1.207013]
[1764555153676,0.00322383,87530.0,87529.0,1.214253]
[1764555155524,0.0002,87540.0,87529.0,1.214253]
[1764555155525,0.0002,87540.0,87529.0,4.86445898]
[1764555155764,0.0002,87550.0,87529.0,4.86445898]
[1764555155765,0.0002,87550.0,87549.0,0.62535851]
[1764555155964,0.0002,87550.0,87549.0,0.64399479]
[1764555156264,0.0002,87550.0,87549.0,1.04399479]
[1764555156407,0.0002,87550.0,87549.0,0.64399479]
[1764555156613,0.0002,87550.0,87549.0,0.63260277]
[1764555156815,0.0002,87550.0,87549.0,1.04399479]
[1764555159366,0.09485,87550.0,87549.0,0.01139628]
[1764555160322,0.0012,87550.0,87549.0,0.01139628]
[1764555160477,0.03801,87550.0,87549.0,0.01139628]
[1764555161087,0.09485,87550.0,87549.0,0.01139628]
[1764555161289,0.09547441,87550.0,87549.0,0.01139628]
[1764555162077,0.00182441,87550.0,87549.0,0.04247831]
[1764555162280,0.00182441,87550.0,87549.0,0.04362053]
[1764555163312,0.00182441,87550.0,87549.0,0.0227883]
[1764555163898,0.00182441,87550.0,87549.0,0.01863628]
[1764555164677,0.03863441,87550.0,87549.0,0.01139628]
[1764555165274,0.03863441,87550.0,87549.0,0.23983978]
[1764555166693,0.03887441,87550.0,87549.0,0.23983978]
[1764555167229,0.00182441,87550.0,87549.0,0.23983978]
[1764555168003,0.03887441,87550.0,87549.0,0.23983978]
[1764555169082,0.00182441,87550.0,87549.0,0.23983978]
[1764555169872,0.00182441,87550.0,87549.0,0.2512318]
[1764555170481,0.00182441,87550.0,87549.0,0.23983978]
[1764555171717,0.03887441,87550.0,87549.0,0.23983978]
[1764555171918,0.00182441,87550.0,87549.0,0.23983978]
[1764555172911,0.03887441,87550.0,87549.0,0.23983978]
[1764555173366,0.09582441,87550.0,87549.0,0.01139628]
[1764555178994,0.3242653,87550.0,87549.0,0.01139628]
[1764555180631,0.09582441,87550.0,87549.0,0.01139628]
[1764555180803,0.03887441,87550.0,87549.0,0.23983978]
[1764555180986,0.09582441,87550.0,87549.0,0.01139628]
[1764555181827,0.11415783,87550.0,87549.0,0.01139628]
[1764555182034,0.12555783,87550.0,87549.0,0.01139628]
[1764555182680,0.11415783,87550.0,87549.0,0.01139628]
[1764555183030,0.09582441,87550.0,87549.0,0.01139628]
[1764555183235,0.11415783,87550.0,87549.0,0.01139628]
[1764555185007,0.12555783,87550.0,87549.0,0.01139628]
[1764555185416,0.12139783,87550.0,87549.0,0.01139628]
[1764555185572,0.01142426,87533.0,87525.0,0.00724]
[1764555185777,0.02891,87528.0,87525.0,0.01151458]
[1764555185982,0.02891,87528.0,87525.0,0.57444399]
[1764555185983,0.03705,87526.0,87525.0,0.57444399]
[1764555186529,0.094,87526.0,87525.0,0.57444399]
[1764555187313,0.05695,87536.0,87533.0,0.01142426]
[1764555187460,0.05695,87539.0,87530.0,0.02142464]
[1764555187663,0.05695,87539.0,87534.0,0.01142413]
[1764555187859,0.2284722,87538.0,87534.0,0.01139628]
[1764555188102,0.03705,87535.0,87534.0,0.01139628]
[1764555188463,0.094,87535.0,87534.0,0.01139628]
[1764555189944,0.04033178,87552.0,87537.0,0.23989736]
[1764555190151,0.02995546,87550.0,87539.0,0.22846959]
[1764555190360,0.22844794,87548.0,87539.0,0.22846959]
[1764555190517,0.01142217,87549.0,87539.0,0.22846959]
[1764555190518,0.23986617,87549.0,87539.0,0.22846959]
[1764555190718,0.01162204,87550.0,87539.0,0.22846959]
[1764555190719,0.0002,87550.0,87539.0,0.22846959]
[1764555190918,0.0114223,87548.0,87539.0,0.22846959]
[1764555191256,0.0002,87550.0,87539.0,0.22846959]
[1764555191481,0.0002,87550.0,87547.0,0.2398694]
[1764555191625,0.0002,87550.0,87549.0,0.2284435]
[1764555191977,0.03725,87550.0,87549.0,0.2284435]
[1764555192508,0.03787441,87550.0,87549.0,0.2284435]
[1764555192701,0.03887441,87550.0,87549.0,0.2284435]
[1764555193201,0.00082441,87550.0,87549.0,0.2284435]
[1764555193404,0.00182441,87550.0,87549.0,0.2284435]
[1764555193606,0.00182441,87550.0,87549.0,0.56283552]
[1764555194200,0.00182441,87550.0,87549.0,0.5514435]
[1764555194403,0.09582441,87550.0,87547.0,0.01139628]
[1764555194723,0.03705,87548.0,87547.0,0.01139628]
[1764555197035,0.08949,87548.0,87547.0,0.01139628]
[1764555198570,0.09049,87548.0,87547.0,0.01139628]
[1764555198748,0.03805,87548.0,87547.0,0.01139628]
[1764555198921,0.03705,87548.0,87547.0,0.01139628]
[1764555199317,0.0002,87550.0,87548.0,0.2284461]
[1764555199752,0.0002,87550.0,87549.0,0.01139202]
[1764555199916,0.0002,87550.0,87549.0,0.33439202]
[1764555200806,0.0002,87550.0,87549.0,0.323]
[1764555200983,0.0012,87550.0,87549.0,0.323]
[1764555201196,0.0012,87550.0,87549.0,0.33439202]
[1764555201401,0.0002,87550.0,87549.0,0.33439202]
[1764555201579,0.0002,87550.0,87549.0,0.323]
[1764555201785,0.0012,87550.0,87549.0,0.323]
[1764555205214,0.00182441,87550.0,87549.0,0.323]
[1764555205614,0.00182441,87550.0,87549.0,0.33024]
[1764555205819,0.03511441,87550.0,87549.0,0.33024]
[1764555206398,0.00182441,87550.0,87549.0,0.33024]
[1764555207304,0.03511441,87550.0,87549.0,0.33024]
[1764555207715,0.03511441,87550.0,87547.0,0.01139628]
[1764555207896,0.03329,87548.0,87547.0,0.02281871]
[1764555208094,0.03329,87548.0,87547.0,0.01139628]
[1764555208291,0.08523,87548.0,87547.0,0.33439628]
[1764555208971,0.3136761,87548.0,87547.0,0.01139628]
[1764555209993,0.03329,87548.0,87547.0,0.01139628]
[1764555210753,0.0012,87550.0,87548.0,0.2284461]
[1764555211032,0.0002,87550.0,87548.0,0.2284461]
[1764555211787,0.0002,87550.0,87549.0,0.323]
[1764555212450,0.03349,87550.0,87549.0,0.323]
[1764555212647,0.08543,87550.0,87549.0,0.323]
[1764555212861,0.08543,87550.0,87547.0,0.01139628]
[1764555212862,0.2284435,87549.0,87547.0,0.01139628]
[1764555213072,0.03385198,87548.0,87547.0,0.01139628]
[1764555213274,0.08579198,87548.0,87547.0,0.01139628]
[1764555216738,0.1041254,87548.0,87547.0,0.01139628]
[1764555216939,0.0188954,87548.0,87547.0,0.01139628]
[1764555217140,0.00056198,87548.0,87547.0,0.24708499]
[1764555225874,0.11303198,87548.0,87547.0,0.01139628]
[1764555228243,0.10930198,87548.0,87547.0,0.01139628]
[1764555229228,0.00056198,87548.0,87547.0,0.01139628]
[1764555229626,0.00056198,87548.0,87547.0,0.3457883]
[1764555230831,0.00056198,87548.0,87547.0,0.33439628]
[1764555231232,0.08356198,87548.0,87547.0,0.33439628]
[1764555231433,0.08356198,87548.0,87547.0,0.4317444]
[1764555231662,0.08356198,87548.0,87547.0,0.1087444]
[1764555232318,0.03535198,87548.0,87547.0,0.1087444]
[1764555234504,0.08356198,87548.0,87547.0,0.01139628]
[1764555236679,0.09496198,87548.0,87547.0,0.01139628]
[1764555236931,0.1132954,87548.0,87547.0,0.01139628]
[1764555239136,0.1142954,87548.0,87547.0,0.01139628]
[1764555240288,0.01142295,87543.0,87539.0,0.01139628]
[1764555240530,0.03479,87541.0,87539.0,0.01139628]
[1764555240691,0.26325698,87540.0,87539.0,0.01139628]
[1764555240897,0.26325698,87540.0,87529.0,0.01142478]
[1764555240898,0.01142452,87531.0,87529.0,0.01139628]
[1764555241099,0.06069,87530.0,87529.0,0.01139628]
[1764555241301,0.22850353,87526.0,87525.0,0.0001183]
[1764555241501,0.28919353,87526.0,87525.0,0.0001183]
[1764555241683,0.34880353,87526.0,87525.0,0.0001183]
[1764555242027,0.33740353,87526.0,87525.0,0.0001183]
[1764555242237,0.34880353,87526.0,87525.0,0.0001183]
[1764555242812,0.34980353,87526.0,87525.0,0.0001183]
[1764555243223,0.29980353,87526.0,87525.0,0.0001183]
[1764555243401,0.28840353,87526.0,87525.0,0.0001183]
[1764555243600,0.29564353,87526.0,87525.0,0.0001183]
[1764555244434,0.29764353,87526.0,87525.0,0.0001183]
[1764555244748,0.29464353,87526.0,87525.0,0.0001183]
[1764555244949,0.29564353,87526.0,87525.0,0.0001183]
[1764555245490,0.30704353,87526.0,87525.0,0.0001183]
[1764555246207,0.12854,87526.0,87525.0,0.0001183]
[1764555246351,0.1099,87526.0,87525.0,0.0001183]
[1764555251052,0.12823342,87526.0,87525.0,0.0001183]
[1764555251253,0.13963342,87526.0,87525.0,0.0001183]
[1764555251531,0.13963342,87526.0,87525.0,0.01151458]
[1764555256079,0.12823342,87526.0,87525.0,0.0001183]
[1764555256278,0.38483342,87526.0,87525.0,0.0001183]
[1764555256506,0.3665,87526.0,87525.0,0.0001183]
[1764555257486,0.37374,87526.0,87525.0,0.0001183]
[1764555260008,0.37574,87526.0,87525.0,0.0001183]
[1764555263894,0.22859232,87492.0,87491.0,0.01139628]
[1764555264095,0.28592232,87492.0,87491.0,0.01151462]
[1764555264262,0.34834232,87492.0,87491.0,0.01151462]
[1764555265075,0.34934232,87492.0,87491.0,0.01151462]
[1764555265277,0.35034232,87492.0,87491.0,0.01151462]
[1764555265749,0.12175,87492.0,87491.0,0.01151462]
[1764555265897,0.11035,87492.0,87491.0,0.01151462]
[1764555268953,0.12868342,87492.0,87491.0,0.01151462]
[1764555269407,0.12868342,87492.0,87491.0,0.01321348]
[1764555269952,0.11035,87492.0,87491.0,0.01321348]
[1764555271354,0.12868342,87492.0,87491.0,0.01321348]
[1764555272139,0.14008342,87492.0,87491.0,0.01321348]
[1764555272684,0.14008342,87492.0,87491.0,0.0018172]
[1764555272882,0.38528342,87492.0,87491.0,0.0018172]
[1764555273084,0.36695,87492.0,87491.0,0.0018172]
[1764555280702,0.35555,87492.0,87491.0,0.01321348]
[1764555280902,0.36279,87492.0,87491.0,0.01321348]
[1764555281106,0.37419,87492.0,87491.0,0.01321348]
[1764555281285,0.36279,87492.0,87491.0,0.01321348]
[1764555281492,0.37419,87492.0,87491.0,0.01321348]
[1764555282296,0.36279,87492.0,87491.0,0.01321348]
[1764555282502,0.37419,87492.0,87491.0,0.01321348]
[1764555283286,0.36279,87492.0,87491.0,0.01321348]
[1764555284372,0.37419,87492.0,87491.0,0.01321348]
[1764555284806,0.36279,87492.0,87491.0,0.01321348]
[1764555284988,0.37419,87492.0,87491.0,0.01321348]
[1764555285958,0.35555,87492.0,87491.0,0.01321348]
[1764555287174,0.35277,87492.0,87491.0,0.01321348]
[1764555288709,0.36417,87492.0,87491.0,0.01321348]
[1764555288907,0.35277,87492.0,87491.0,0.01321348]
[1764555289083,0.36417,87492.0,87491.0,0.01321348]
[1764555289911,0.37739991,87492.0,87491.0,0.0018172]
[1764555290229,0.38879991,87492.0,87491.0,0.0018172]
[1764555293145,0.39590949,87492.0,87491.0,0.0018172]
[1764555293346,0.38879991,87492.0,87491.0,0.0018172]
[1764555294250,0.39590977,87492.0,87491.0,0.0018172]
[1764555294451,0.38879991,87492.0,87491.0,0.0018172]
[1764555297631,0.37739991,87492.0,87491.0,0.0018172]
[1764555297937,0.39344319,87492.0,87491.0,0.0018172]
[1764555300139,0.40055739,87492.0,87491.0,0.0018172]
[1764555300542,0.38204319,87492.0,87491.0,0.0018172]
[1764555300947,0.38204319,87492.0,87491.0,0.00047228]
[1764555301121,0.39344319,87492.0,87491.0,0.00047228]
[1764555301672,0.2286995,87451.0,87434.0,0.01143719]
[1764555302001,0.05562,87451.0,87450.0,0.01219092]
[1764555302180,0.03507366,87461.0,87450.0,0.02219091]
[1764555302181,0.25231879,87459.0,87450.0,0.02219091]
[1764555302408,0.01143432,87456.0,87451.0,0.01143497]
[1764555302592,0.03198,87451.0,87450.0,0.33519092]
[1764555302956,0.22868904,87455.0,87450.0,0.33519092]
[1764555302957,0.01143471,87453.0,87450.0,0.34219092]
[1764555303164,0.24011525,87458.0,87453.0,0.01143471]
[1764555303370,0.03507392,87459.0,87455.0,0.22868904]
[1764555303783,0.03507392,87459.0,87454.0,0.01143458]
[1764555303981,0.01143405,87458.0,87454.0,0.01143458]
[1764555304186,0.01143432,87456.0,87452.0,0.01143484]
[1764555304390,0.01143432,87456.0,87453.0,0.001]
[1764555304583,0.02364,87459.0,87456.0,0.01143432]
[1764555304803,0.03507392,87459.0,87456.0,0.01143432]
[1764555305011,0.00724,87464.0,87461.0,0.01143366]
[1764555305189,0.02364,87469.0,87465.0,0.01143314]
[1764555305406,0.22864223,87473.0,87465.0,0.01143314]
[1764555305407,0.01143209,87473.0,87467.0,0.01143288]
[1764555305606,0.01143209,87473.0,87468.0,0.01143275]
[1764555305811,0.02364,87476.0,87473.0,0.01143209]
[1764555305991,0.01143092,87482.0,87475.0,0.01143183]
[1764555306199,0.01143092,87482.0,87472.0,0.01139628]
[1764555306200,0.03198,87474.0,87472.0,0.01139628]
[1764555306385,0.0114317,87476.0,87472.0,0.01139628]
[1764555306386,0.03507118,87480.0,87473.0,0.09734812]
[1764555306587,0.02364,87480.0,87477.0,0.24006283]
[1764555306791,0.02364,87480.0,87477.0,0.01143157]
[1764555306990,0.01142922,87495.0,87485.0,0.01143053]
[1764555306991,0.01833342,87490.0,87485.0,0.01143053]
[1764555307217,0.01142909,87496.0,87487.0,0.33738377]
[1764555307417,0.2452,87496.0,87491.0,0.24002393]
[1764555307638,0.25662909,87496.0,87491.0,0.01142974]
[1764555307891,0.25674728,87496.0,87491.0,0.01142974]
[1764555308033,0.01142922,87495.0,87491.0,0.01142974]
[1764555308424,0.01142922,87495.0,87491.0,0.24002438]
[1764555308631,0.00111819,87496.0,87495.0,0.22858449]
[1764555308830,0.00111819,87496.0,87495.0,0.23998077]
[1764555309079,0.03409819,87496.0,87495.0,0.01139628]
[1764555309478,0.31092006,87496.0,87495.0,0.01139628]
[1764555309657,0.08133819,87496.0,87495.0,0.01139628]
[1764555309859,0.30992006,87496.0,87495.0,0.01139628]
[1764555311008,0.30892006,87496.0,87495.0,0.01139628]
[1764555311257,0.30992006,87496.0,87495.0,0.01139628]
[1764555312215,0.08133819,87496.0,87495.0,0.01139628]
[1764555312617,0.00111819,87496.0,87495.0,0.01139628]
[1764555313749,0.30992006,87496.0,87495.0,0.01139628]
[1764555313930,0.08133819,87496.0,87495.0,0.01139628]
[1764555314133,0.00111819,87496.0,87495.0,0.01139628]
[1764555314331,0.00011819,87496.0,87495.0,0.01139628]
[1764555314532,0.00011819,87496.0,87495.0,0.23998077]
[1764555314766,0.00011819,87496.0,87495.0,0.24098077]
[1764555314971,0.08033819,87496.0,87495.0,0.01239628]
[1764555315194,0.09867161,87496.0,87495.0,0.01239628]
[1764555316134,0.08033819,87496.0,87495.0,0.01239628]
[1764555316923,0.08033819,87496.0,87495.0,0.01139628]
[1764555318291,0.00011819,87496.0,87495.0,0.01139628]
[1764555318489,0.25724006,87496.0,87495.0,0.01139628]
[1764555319436,0.00011819,87496.0,87495.0,0.01139628]
[1764555320215,0.00011819,87496.0,87495.0,0.01239628]
[1764555321031,0.02865819,87496.0,87495.0,0.01239628]
[1764555322296,0.30087006,87496.0,87495.0,0.01239628]
[1764555323064,0.30087006,87496.0,87495.0,0.01139628]
[1764555323452,0.07328819,87496.0,87495.0,0.01139628]
[1764555324683,0.07228819,87496.0,87495.0,0.01139628]
[1764555324897,0.00011819,87496.0,87495.0,0.23998077]
[1764555325081,0.00011819,87496.0,87495.0,0.24098077]
[1764555325859,0.00011819,87496.0,87495.0,0.01239628]
[1764555326068,0.07228819,87496.0,87495.0,0.01239628]
[1764555326268,0.02865819,87496.0,87495.0,0.01239628]
[1764555326490,0.02865819,87496.0,87495.0,0.24098077]
[1764555326784,0.02865819,87496.0,87495.0,0.01239628]
[1764555327597,0.07445819,87496.0,87495.0,0.01239628]
[1764555327999,0.09279161,87496.0,87495.0,0.01239628]
[1764555328210,0.07445819,87496.0,87495.0,0.01239628]
[1764555328626,0.09551819,87496.0,87495.0,0.01239628]
[1764555329764,0.09551819,87496.0,87495.0,0.01139628]
[1764555330146,0.12525161,87496.0,87495.0,0.01139628]
[1764555330719,0.11385161,87496.0,87495.0,0.01139628]
[1764555331096,0.11485161,87496.0,87495.0,0.01139628]
[1764555331297,0.00111819,87496.0,87495.0,0.01139628]
[1764555332629,0.00011819,87496.0,87495.0,0.01139628]
[1764555332806,0.00011819,87496.0,87495.0,0.01239628]
[1764555334144,0.00011819,87496.0,87495.0,0.33539628]
[1764555334353,0.00011819,87496.0,87495.0,0.3467883]